fUST/lending_fUST_20240823
["ID","MTS","AMOUNT","RATE_DAILY","PERIOD"]
[335633545,1724395654870,-500.0,0.00016967,2]
[335633546,1724395654895,-490.41488901,0.00016968,2]
[335633547,1724395654917,-500.0,0.00016968,2]
[335633548,1724395654940,-500.0,0.00016968,2]
[335633549,1724395654963,-500.0,0.00016968,2]
[335633550,1724395654986,-500.0,0.00016968,2]
[335633551,1724395655007,-500.0,0.00016968,2]
[335633552,1724395655031,-1401.8,0.00016968,2]
[335633553,1724395655055,-527.64,0.00016968,2]
[335633554,1724395655077,-561.62,0.00016968,2]
[335633555,1724395655101,-713.35,0.00016968,2]
[335633556,1724395655126,-740.78,0.00016968,2]
[335633557,1724395655150,-500.0,0.00016968,2]
[335633558,1724395655174,-464.04485381,0.00016968,2]
[335633559,1724395655197,-1405.2,0.00016968,2]
[335633560,1724395655222,-5498.47,0.00016968,2]
[335633561,1724395655245,-861.92,0.00016968,2]
[335633562,1724395655266,-3636.31,0.00016968,2]
[335633563,1724395655288,-523.26,0.00016968,2]
[335633564,1724395655315,-500.0,0.00016968,2]
[335633565,1724395655338,-2109.94,0.00016968,2]
[335633566,1724395655361,-659.17,0.00016968,2]
[335633567,1724395655384,-808.29,0.00016968,2]
[335633568,1724395655409,-1112.68,0.00016968,2]
[335633569,1724395655431,-500.0,0.00016968,2]
[335633570,1724395655452,-500.0,0.00016968,2]
[335633571,1724395655473,-501.39276532,0.00016968,2]
[335633572,1724395655496,-500.0,0.00016968,2]
[335633573,1724395655519,-500.0,0.00016968,2]
[335633574,1724395655543,-500.0,0.00016968,2]
[335633575,1724395655565,-333.25470159,0.00016968,2]
[335633578,1724395746109,-889.60150815,0.00014519,2]
[335633579,1724395746133,-1168.1308113,0.00015648,2]
[335633580,1724395748297,854.06535609,0.00014245,2]
[335633581,1724395748322,974.6786,0.00014245,2]
[335633582,1724395752115,-5049.94447631,0.00014245,2]
[335633583,1724395758147,-500.0,0.00016438,2]
[335633584,1724395758169,-500.0,0.00016438,2]
[335633585,1724395758191,-500.91977216,0.00016438,2]
[335633586,1724395758217,-500.0,0.00016438,2]
[335633587,1724395758239,-500.0,0.00016438,2]
[335633588,1724395758266,-500.0,0.00016438,2]
[335633589,1724395758288,-500.0,0.00016438,2]
[335633590,1724395758310,-500.0,0.00016438,2]
[335633591,1724395758333,-500.0,0.00016438,2]
[335633592,1724395758357,-500.0,0.00016438,2]
[335633593,1724395758379,-501.10459659,0.00016438,2]
[335633594,1724395758401,-500.0,0.00016438,2]
[335633595,1724395758423,-500.0,0.00016438,2]
[335633596,1724395758447,-504.5397436,0.00016438,2]
[335633597,1724395758469,-375.64805783,0.00016438,2]
[335633598,1724395758490,-391.54057447,0.00016438,2]
[335633599,1724395758514,-500.0,0.00016438,2]
[335633600,1724395758537,-478.6164577,0.00016438,2]
[335633601,1724395758558,-500.0,0.00016438,2]
[335633602,1724395758580,-500.0,0.00016438,2]
[335633603,1724395758601,-500.0,0.00016438,2]
[335633604,1724395758624,-500.0,0.00016438,2]
[335633605,1724395758646,-500.0,0.00016438,2]
[335633606,1724395758667,-500.0,0.00016438,2]
[335633607,1724395758689,-500.0,0.00016438,2]
[335633608,1724395758710,-500.0,0.00016438,2]
[335633609,1724395758733,-500.0,0.00016438,2]
[335633610,1724395758755,-500.0,0.00016438,2]
[335633611,1724395758776,-500.0,0.00016438,2]
[335633612,1724395758798,-500.0,0.00016438,2]
[335633613,1724395758820,-500.0,0.00016438,2]
[335633614,1724395758842,-500.0,0.00016438,2]
[335633615,1724395758865,-4675.34,0.00016438,2]
[335633616,1724395758886,-500.0,0.00016438,2]
[335633617,1724395758907,-894.6,0.00016438,2]
[335633618,1724395758929,-500.78883318,0.00016438,2]
[335633619,1724395758951,-500.0,0.00016438,2]
[335633620,1724395758972,-501.00056026,0.00016438,2]
[335633621,1724395758994,-500.0,0.00016438,2]
[335633622,1724395759017,-500.47986134,0.00016438,2]
[335633623,1724395759039,-661.2,0.00016438,2]
[335633624,1724395759061,-500.0,0.00016438,2]
[335633625,1724395759082,-500.0,0.00016438,2]
[335633626,1724395759104,-554.29,0.00016438,2]
[335633627,1724395759126,-500.0,0.00016438,2]
[335633628,1724395759148,-500.0,0.00016438,2]
[335633629,1724395759169,-500.0,0.00016438,2]
[335633630,1724395759682,331.91154287,0.00016438,2]
[335633631,1724395769116,-168.08845713,0.00016438,2]
[335633632,1724395769139,-500.0,0.00016438,2]
[335633633,1724395769162,-500.0,0.00016438,2]
[335633634,1724395769186,-500.0,0.00016438,2]
[335633635,1724395769208,-500.0,0.00016438,2]
[335633636,1724395769230,-500.0,0.00016438,2]
[335633637,1724395769255,-5891.51,0.00016438,2]
[335633638,1724395769277,-500.0,0.00016438,2]
[335633639,1724395769299,-500.0,0.00016438,2]
[335633640,1724395769410,336.35074097,0.00016438,2]
[335633641,1724395778720,763.0,0.00027,120]
[335633642,1724395784293,330.30818799,0.00014519,2]
[335633647,1724395806894,610.22111117,0.000155,2]
[335633648,1724395806917,898.22582719,0.000155,2]
[335633678,1724395832500,-491.55306164,0.000155,2]
[335633679,1724395832510,-300.0,0.00016437,2]
[335633680,1724395832519,-300.0,0.00016437,2]
[335633681,1724395832528,-163.64925903,0.00016438,2]
[335633682,1724395832537,-540.10105187,0.00016438,2]
[335633683,1724395832547,-500.0,0.00016438,2]
[335633684,1724395832556,-500.0,0.00016438,2]
[335633685,1724395832565,-500.0,0.00016438,2]
[335633686,1724395832574,-157.14845188,0.00016438,2]
[335633687,1724395832836,-342.85154812,0.00016438,2]
[335633688,1724395832848,-500.0,0.00016438,2]
[335633689,1724395832859,-500.0,0.00016438,2]
[335633690,1724395832869,-500.0,0.00016438,2]
[335633691,1724395832879,-516.66660284,0.00016438,2]
[335633692,1724395832889,-500.0,0.00016438,2]
[335633693,1724395832899,-609.9,0.00016438,2]
[335633694,1724395832909,-500.0,0.00016438,2]
[335633695,1724395832918,-500.0,0.00016438,2]
[335633696,1724395832928,-546.68,0.00016438,2]
[335633697,1724395832937,-500.0,0.00016438,2]
[335633698,1724395832947,-500.0,0.00016438,2]
[335633699,1724395832957,-671.34,0.00016438,2]
[335633700,1724395832966,-500.0,0.00016438,2]
[335633701,1724395832976,-2954.68,0.00016438,2]
[335633702,1724395832986,-500.0,0.00016438,2]
[335633703,1724395832995,-505.37684456,0.00016438,2]
[335633704,1724395833005,-506.32027875,0.00016438,2]
[335633705,1724395833015,-512.15150887,0.00016438,2]
[335633706,1724395833024,-248.5475764,0.00016438,2]
[335633707,1724395833033,-619.7,0.00016438,2]
[335633708,1724395833044,-514.7692411,0.00016438,2]
[335633709,1724395833054,-758.75,0.00016438,2]
[335633710,1724395833064,-442.96574965,0.00016438,2]
[335633711,1724395833074,-500.98285651,0.00016438,2]
[335633712,1724395833083,-500.0,0.00016438,2]
[335633713,1724395833095,-500.0,0.00016438,2]
[335633714,1724395833104,-500.0,0.00016438,2]
[335633715,1724395833114,-500.0,0.00016438,2]
[335633716,1724395833125,-1500.0,0.00016438,2]
[335633717,1724395833134,-518.12396184,0.00016712,2]
[335633718,1724395833144,-345.7725347,0.00016712,2]
[335633719,1724395833154,-500.0,0.00016712,2]
[335633720,1724395833164,-500.0,0.00016712,2]
[335633721,1724395833174,-500.0,0.00016712,2]
[335633722,1724395833186,-500.0,0.00016712,2]
[335633723,1724395833196,-500.0,0.00016712,2]
[335633724,1724395833206,-500.0,0.00016712,2]
[335633725,1724395833215,-500.0,0.00016712,2]
[335633726,1724395833226,-500.0,0.00016712,2]
[335633727,1724395833235,-500.0,0.00016712,2]
[335633728,1724395833245,-500.0,0.00016712,2]
[335633729,1724395833255,-500.0,0.00016712,2]
[335633730,1724395833265,-500.0,0.00016712,2]
[335633731,1724395833274,-617.54714737,0.00016712,2]
[335633732,1724395833284,-500.0,0.00016712,2]
[335633733,1724395833295,-500.0,0.00016712,2]
[335633734,1724395833304,-500.0,0.00016712,2]
[335633735,1724395833314,-500.0,0.00016712,2]
[335633736,1724395833325,-500.0,0.00016712,2]
[335633737,1724395833335,-500.0,0.00016712,2]
[335633738,1724395833348,-500.0,0.00016712,2]
[335633739,1724395833358,-500.0,0.00016712,2]
[335633740,1724395833371,-500.0,0.00016712,2]
[335633741,1724395833384,-599.40315967,0.00016712,2]
[335633742,1724395833393,-4675.34,0.00016712,2]
[335633743,1724395833403,-500.0,0.00016712,2]
[335633744,1724395833413,-894.6,0.00016712,2]
[335633745,1724395833423,-500.0,0.00016712,2]
[335633746,1724395833434,-500.0,0.00016712,2]
[335633747,1724395833443,-661.2,0.00016712,2]
[335633748,1724395833454,-500.0,0.00016712,2]
[335633749,1724395833464,-190.1906689,0.00016712,2]
[335633750,1724395833474,-500.0,0.00016712,2]
[335633751,1724395833484,-500.0,0.00016712,2]
[335633752,1724395833493,-500.0,0.00016712,2]
[335633753,1724395833503,-500.0,0.00016712,2]
[335633754,1724395833512,-500.0,0.00016712,2]
[335633755,1724395833522,-500.0,0.00016712,2]
[335633756,1724395833532,-500.0,0.00016712,2]
[335633757,1724395833542,-500.0,0.00016712,2]
[335633758,1724395833552,-5891.51,0.00016712,2]
[335633759,1724395833561,-15.47303627,0.00016712,2]
[335633760,1724395833574,-484.52696373,0.00016712,2]
[335633761,1724395833584,-500.0,0.00016712,2]
[335633762,1724395833597,-500.0,0.00016712,2]
[335633763,1724395833607,-500.0,0.00016712,2]
[335633764,1724395833616,-500.0,0.00016712,2]
[335633765,1724395833626,-500.0,0.00016712,2]
[335633766,1724395833636,-500.0,0.00016712,2]
[335633767,1724395833645,-500.0,0.00016712,2]
[335633768,1724395833655,-500.0,0.00016712,2]
[335633769,1724395833665,-500.0,0.00016712,2]
[335633770,1724395833891,-500.0,0.00016712,2]
[335633771,1724395833903,-609.9,0.00016712,2]
[335633772,1724395833913,-500.0,0.00016712,2]
[335633773,1724395833923,-500.0,0.00016712,2]
[335633774,1724395833934,-30.17101189,0.00016712,2]
[335633795,1724395838040,-500.0,0.00016438,2]
[335633797,1724395838050,-500.0,0.00016438,2]
[335633799,1724395838060,-500.0,0.00016438,2]
[335633801,1724395838070,-516.50898811,0.00016712,2]
[335633803,1724395838080,-500.0,0.00016712,2]
[335633805,1724395838089,-500.0,0.00016712,2]
[335633807,1724395838108,-671.34,0.00016712,2]
[335633809,1724395838118,-500.0,0.00016712,2]
[335633811,1724395838127,-2954.68,0.00016712,2]
[335633813,1724395838137,-500.0,0.00016712,2]
[335633815,1724395838147,-619.7,0.00016712,2]
[335633817,1724395838157,-758.75,0.00016712,2]
[335633819,1724395838167,-500.0,0.00016712,2]
[335633821,1724395838177,-500.0,0.00016712,2]
[335633823,1724395838186,-500.0,0.00016712,2]
[335633825,1724395838197,-500.0,0.00016712,2]
[335633827,1724395838207,-500.0,0.00016712,2]
[335633829,1724395838217,-500.0,0.00016712,2]
[335633831,1724395838227,-440.53963092,0.00016869,2]
[335633833,1724395838237,-40000.0,0.00016869,2]
[335633835,1724395838246,-2000.0,0.00016869,2]
[335633837,1724395838256,-277.76886237,0.00016934,2]
[335633839,1724395838268,-440.53963092,0.00016938,2]
[335633841,1724395838277,-554.29,0.00016958,2]
[335633843,1724395838287,-554.29,0.00016958,2]
[335633845,1724395838297,-500.0,0.00016958,2]
[335633847,1724395838306,-500.0,0.00016958,2]
[335633849,1724395838315,-500.68792651,0.00016958,2]
[335633851,1724395838325,-259302.176517,0.00016959,2]
[335633853,1724395838334,-554.29,0.00016966,2]
[335633854,1724395838343,-500.0,0.00016967,2]
[335633855,1724395838362,-1885.33,0.00016967,2]
[335633856,1724395838373,-3612.82,0.00016967,2]
[335633857,1724395838383,-500.0,0.00016967,2]
[335633859,1724395838392,-7306.65,0.00016967,2]
[335633860,1724395838403,-500.0,0.00016967,2]
[335633861,1724395838412,-500.0,0.00016967,2]
[335633862,1724395838421,-500.0,0.00016967,2]
[335633863,1724395838430,-500.0,0.00016967,2]
[335633864,1724395838441,-500.0,0.00016967,2]
[335633865,1724395838451,-821.27,0.00016967,2]
[335633866,1724395838460,-500.0,0.00016967,2]
[335633867,1724395838470,-1180.67,0.00016967,2]
[335633868,1724395838480,-500.0,0.00016967,2]
[335633869,1724395838491,-500.0,0.00016967,2]
[335633870,1724395838501,-500.0,0.00016967,2]
[335633871,1724395838510,-1372.03,0.00016967,2]
[335633872,1724395838520,-500.0,0.00016967,2]
[335633873,1724395838530,-511.42370926,0.00016967,2]
[335633874,1724395838539,-500.0,0.00016967,2]
[335633875,1724395838549,-500.0,0.00016967,2]
[335633876,1724395838559,-500.0,0.00016967,2]
[335633877,1724395838569,-500.0,0.00016967,2]
[335633878,1724395838578,-500.0,0.00016967,2]
[335633879,1724395838588,-503.42198,0.00016967,2]
[335633880,1724395838606,-500.0,0.00016967,2]
[335633881,1724395838616,-725.91,0.00016967,2]
[335633882,1724395838625,-500.0,0.00016967,2]
[335633883,1724395838635,-521.59,0.00016967,2]
[335633884,1724395838645,-3099.2,0.00016967,2]
[335633885,1724395838655,-554.29,0.00016967,2]
[335633886,1724395838664,-500.0,0.00016967,2]
[335633887,1724395838674,-500.0,0.00016967,2]
[335633888,1724395838684,-528.02,0.00016967,2]
[335633889,1724395838693,-524.15852355,0.00016967,2]
[335633890,1724395838702,-500.0,0.00016967,2]
[335633891,1724395838712,-500.0,0.00016967,2]
[335633892,1724395838720,-551.57,0.00016967,2]
[335633893,1724395838730,-500.0,0.00016967,2]
[335633894,1724395838740,-500.0,0.00016967,2]
[335633895,1724395838749,-1144.69,0.00016967,2]
[335633896,1724395838759,-500.0,0.00016967,2]
[335633897,1724395838768,-500.0,0.00016967,2]
[335633898,1724395838777,-621.83,0.00016967,2]
[335633899,1724395838787,-505.62487313,0.00016967,2]
[335633900,1724395838796,-500.0,0.00016967,2]
[335633901,1724395838806,-500.0,0.00016967,2]
[335633902,1724395838816,-664.13,0.00016967,2]
[335633903,1724395838827,-500.0,0.00016967,2]
[335633904,1724395838836,-501.15612593,0.00016967,2]
[335633905,1724395838849,-1526.86,0.00016967,2]
[335633906,1724395838858,-500.0,0.00016967,2]
[335633907,1724395838867,-500.0,0.00016967,2]
[335633908,1724395838877,-500.0,0.00016967,2]
[335633909,1724395838886,-2664.09,0.00016967,2]
[335633910,1724395838895,-500.0,0.00016967,2]
[335633911,1724395838904,-500.0,0.00016967,2]
[335633912,1724395838914,-782.91,0.00016967,2]
[335633913,1724395838924,-2461.24,0.00016967,2]
[335633914,1724395838933,-505.73406237,0.00016967,2]
[335633915,1724395838943,-500.0,0.00016967,2]
[335633916,1724395838952,-500.0,0.00016967,2]
[335633917,1724395838961,-500.0,0.00016967,2]
[335633918,1724395838970,-500.0,0.00016967,2]
[335633919,1724395838979,-500.0,0.00016967,2]
[335633920,1724395838989,-500.0,0.00016968,2]
[335633921,1724395838999,-500.0,0.00016968,2]
[335633922,1724395839009,-500.0,0.00016968,2]
[335633923,1724395839019,-500.0,0.00016968,2]
[335633924,1724395839028,-500.0,0.00016968,2]
[335633925,1724395839038,-744.61,0.00016968,2]
[335633926,1724395839047,-1000.0,0.00016968,2]
[335633927,1724395839057,-500.0,0.00016968,2]
[335633928,1724395839067,-500.0,0.00016968,2]
[335633929,1724395839077,-500.0,0.00016968,2]
[335633930,1724395839087,-500.0,0.00016968,2]
[335633931,1724395839101,-500.0,0.00016968,2]
[335633932,1724395839111,-500.0,0.00016968,2]
[335633933,1724395839120,-500.0,0.00016968,2]
[335633934,1724395839130,-541.37,0.00016968,2]
[335633935,1724395839140,-541.37,0.00016968,2]
[335633936,1724395839150,-541.37,0.00016968,2]
[335633937,1724395839160,-541.37,0.00016968,2]
[335633938,1724395839170,-500.0,0.00016968,2]
[335633939,1724395839180,-541.37,0.00016968,2]
[335633940,1724395839190,-500.0,0.00016968,2]
[335633941,1724395839200,-539.22,0.00016968,2]
[335633942,1724395839209,-500.0,0.00016968,2]
[335633943,1724395839220,-500.0,0.00016968,2]
[335633944,1724395839230,-500.0,0.00016968,2]
[335633945,1724395839240,-500.0,0.00016968,2]
[335633946,1724395839249,-500.0,0.00016968,2]
[335633947,1724395839259,-500.0,0.00016968,2]
[335633948,1724395839269,-3181.77,0.00016968,2]
[335633949,1724395839279,-500.0,0.00016968,2]
[335633950,1724395839288,-3862.64,0.00016968,2]
[335633951,1724395839298,-500.0,0.00016968,2]
[335633952,1724395839308,-460.46788103,0.00016968,2]
[335633953,1724395839317,-587.01,0.00016968,2]
[335633954,1724395839327,-500.0,0.00016968,2]
[335633955,1724395839336,-500.0,0.00016968,2]
[335633956,1724395839345,-500.0,0.00016968,2]
[335633957,1724395839357,-1558.85,0.00016968,2]
[335633958,1724395839367,-500.0,0.00016968,2]
[335633959,1724395839377,-500.0,0.00016968,2]
[335633960,1724395839388,-500.0,0.00016968,2]
[335633961,1724395839397,-500.0,0.00016968,2]
[335633962,1724395839407,-500.0,0.00016968,2]
[335633963,1724395839417,-554.29,0.00016968,2]
[335633964,1724395839427,-554.29,0.00016968,2]
[335633965,1724395839436,-500.0,0.00016968,2]
[335633966,1724395839445,-554.29,0.00016968,2]
[335633967,1724395839456,-554.29,0.00016968,2]
[335633968,1724395839466,-554.29,0.00016968,2]
[335633969,1724395839475,-500.0,0.00016968,2]
[335633970,1724395839485,-500.0,0.00016968,2]
[335633971,1724395839494,-500.0,0.00016968,2]
[335633972,1724395839504,-500.0,0.00016968,2]
[335633973,1724395839514,-4671.05,0.00016968,2]
[335633974,1724395839523,-500.0,0.00016968,2]
[335633975,1724395839533,-1144.69,0.00016968,2]
[335633976,1724395839543,-1144.69,0.00016968,2]
[335633977,1724395839553,-1144.69,0.00016968,2]
[335633978,1724395839562,-500.0,0.00016968,2]
[335633979,1724395839572,-507.96515692,0.00016968,2]
[335633980,1724395839581,-536.15326717,0.00016968,2]
[335633981,1724395839590,-1938.19,0.00016968,2]
[335633982,1724395839603,-500.0,0.00016968,2]
[335633983,1724395839612,-267.24139276,0.00016968,2]
[335633984,1724395839622,-539.43480988,0.00016968,2]
[335633985,1724395839631,-500.0,0.00016968,2]
[335633986,1724395839641,-500.0,0.00016968,2]
[335633987,1724395839650,-500.0,0.00016968,2]
[335633988,1724395839659,-500.0,0.00016968,2]
[335633989,1724395839669,-294.81835788,0.00016968,2]
[335633990,1724395839678,-169.74647011,0.00016968,2]
[335633991,1724395839687,-500.0,0.00016968,2]
[335633992,1724395839696,-500.0,0.00016968,2]
[335633993,1724395839705,-500.0,0.00016968,2]
[335633994,1724395839714,-500.0,0.00016968,2]
[335633995,1724395839724,-500.0,0.00016968,2]
[335633996,1724395839733,-45357.72448558,0.00016969,9]
[335633997,1724395839742,-500.0,0.00016969,2]
[335633998,1724395839751,-500.0,0.00016969,2]
[335633999,1724395839761,-500.0,0.00016969,2]
[335634000,1724395839771,-500.0,0.00016969,2]
[335634001,1724395839780,-500.0,0.00016969,2]
[335634002,1724395839790,-500.0,0.00016969,2]
[335634003,1724395839799,-500.0,0.00016969,2]
[335634005,1724395839808,-500.0,0.00016969,2]
[335634007,1724395839817,-500.0,0.00016969,2]
[335634009,1724395839827,-500.0,0.00016969,2]
[335634010,1724395839836,-500.0,0.00016969,2]
[335634011,1724395839846,-500.0,0.00016969,2]
[335634012,1724395839856,-500.0,0.00016969,2]
[335634013,1724395839865,-500.0,0.00016969,2]
[335634014,1724395839874,-500.0,0.00016969,2]
[335634015,1724395839885,-500.0,0.00016969,2]
[335634016,1724395839894,-500.0,0.00016969,2]
[335634017,1724395839903,-500.0,0.00016969,2]
[335634018,1724395839913,-176.27516391,0.00016969,2]
[335634019,1724395839922,-500.0,0.00016969,2]
[335634020,1724395839932,-450.03357233,0.00016969,2]
[335634024,1724395840131,-500.0,0.00016969,2]
[335634025,1724395840141,-500.0,0.00016969,2]
[335634026,1724395840150,-500.0,0.00016969,2]
[335634027,1724395840160,-500.0,0.00016969,2]
[335634028,1724395840171,-500.0,0.00016969,2]
[335634029,1724395840181,-500.0,0.00016969,2]
[335634030,1724395840190,-500.0,0.00016969,2]
[335634031,1724395840200,-502.95062344,0.00016969,2]
[335634032,1724395840209,-500.0,0.00016969,2]
[335634033,1724395840218,-500.0,0.00016969,2]
[335634034,1724395840228,-500.0,0.00016969,2]
[335634035,1724395840237,-500.0,0.00016969,2]
[335634036,1724395840246,-500.0,0.00016969,2]
[335634037,1724395840255,-439.72958031,0.00016969,2]
[335634038,1724395840265,-500.0,0.00016969,2]
[335634039,1724395840275,-638.23,0.00016969,2]
[335634040,1724395840285,-500.0,0.00016969,2]
[335634041,1724395840294,-322.0121404,0.00016969,2]
[335634042,1724395840303,-500.0,0.00016969,2]
[335634043,1724395840313,-500.0,0.00016969,2]
[335634044,1724395840322,-500.82306051,0.00016969,2]
[335634045,1724395840331,-500.0,0.00016969,2]
[335634046,1724395840340,-500.0,0.00016969,2]
[335634047,1724395840352,-500.0,0.00016969,2]
[335634048,1724395840362,-500.0,0.00016969,2]
[335634049,1724395840371,-500.77567429,0.00016969,2]
[335634050,1724395840384,-500.0,0.00016969,2]
[335634051,1724395840393,-500.0,0.00016969,2]
[335634052,1724395840402,-491.3994155,0.00016969,2]
[335634053,1724395840412,-500.0,0.00016969,2]
[335634054,1724395840423,-500.0,0.00016969,2]
[335634055,1724395840434,-500.0,0.00016969,2]
[335634056,1724395840444,-501.82316621,0.00016969,2]
[335634057,1724395840457,-500.0,0.00016969,2]
[335634058,1724395840469,-500.0,0.00016969,2]
[335634059,1724395840479,-539.28,0.00016969,2]
[335634060,1724395840488,-500.80633526,0.00016969,2]
[335634061,1724395840499,-500.0,0.00016969,2]
[335634062,1724395840510,-500.0,0.00016969,2]
[335634063,1724395840519,-590.26489435,0.00016969,2]
[335634064,1724395840534,-500.0,0.00016969,2]
[335634065,1724395840543,-500.0,0.00016969,2]
[335634066,1724395840555,-547.62,0.00016969,2]
[335634067,1724395840565,-500.0,0.00016969,2]
[335634068,1724395840578,-633.09,0.00016969,2]
[335634069,1724395840587,-1013.52,0.00016969,2]
[335634070,1724395840599,-500.0,0.00016969,2]
[335634071,1724395840610,-500.0,0.00016969,2]
[335634072,1724395840620,-500.0,0.00016969,2]
[335634073,1724395840630,-409.99527106,0.00016969,2]
[335634074,1724395840639,-500.0,0.00016969,2]
[335634075,1724395840649,-500.0,0.00016969,2]
[335634076,1724395840658,-500.0,0.00016969,2]
[335634077,1724395840671,-500.0,0.00016969,2]
[335634078,1724395840680,-500.0,0.00016969,2]
[335634079,1724395840690,-500.0,0.00016969,2]
[335634080,1724395840699,-500.0,0.00016969,2]
[335634081,1724395840708,-500.0,0.00016969,2]
[335634082,1724395840718,-520.7,0.00016969,2]
[335634083,1724395840727,-500.0,0.00016969,2]
[335634084,1724395840736,-500.0,0.00016969,2]
[335634085,1724395840745,-500.0,0.00016969,2]
[335634086,1724395840756,-500.0,0.00016969,2]
[335634087,1724395840765,-311.35422224,0.00016969,2]
[335634088,1724395840774,-527.5506171,0.00016969,2]
[335634089,1724395840783,-500.0,0.00016969,2]
[335634090,1724395840794,-500.0,0.00016969,2]
[335634091,1724395840803,-500.0,0.00016969,2]
[335634092,1724395840813,-526.62,0.00016969,2]
[335634093,1724395840822,-500.0,0.00016969,2]
[335634094,1724395840832,-301.62571301,0.00016969,2]
[335634095,1724395840841,-500.0,0.00016969,2]
[335634096,1724395840853,-760.14,0.00016969,2]
[335634097,1724395840869,-500.0,0.00016969,2]
[335634098,1724395840878,-500.0,0.00016969,2]
[335634099,1724395840888,-500.0,0.00016969,2]
[335634100,1724395840897,-587.94,0.00016969,2]
[335634101,1724395840907,-500.0,0.00016969,2]
[335634102,1724395840917,-500.0,0.00016969,2]
[335634103,1724395840926,-500.0,0.00016969,2]
[335634104,1724395840936,-500.0,0.00016969,2]
[335634105,1724395840945,-500.0,0.00016969,2]
[335634106,1724395840955,-500.0,0.00016969,2]
[335634107,1724395840964,-500.0,0.00016969,2]
[335634108,1724395840974,-500.0,0.00016969,2]
[335634109,1724395840984,-500.0,0.00016969,2]
[335634110,1724395840994,-500.0,0.00016969,2]
[335634111,1724395841004,-500.0,0.00016969,2]
[335634112,1724395841013,-500.0,0.00016969,2]
[335634113,1724395841023,-500.0,0.00016969,2]
[335634114,1724395841033,-500.0,0.00016969,2]
[335634115,1724395841042,-3074.95,0.00016969,2]
[335634116,1724395841052,-500.0,0.00016969,2]
[335634117,1724395841062,-500.0,0.00016969,2]
[335634118,1724395841072,-500.0,0.00016969,2]
[335634119,1724395841081,-596.89,0.00016969,2]
[335634120,1724395841091,-500.0,0.00016969,2]
[335634121,1724395841107,-517.09094903,0.00016969,2]
[335634122,1724395841118,-500.0,0.00016969,2]
[335634123,1724395841127,-500.0,0.00016969,2]
[335634124,1724395841136,-500.0,0.00016969,2]
[335634125,1724395841146,-500.0,0.00016969,2]
[335634126,1724395841157,-500.0,0.00016969,2]
[335634127,1724395841166,-500.0,0.00016969,2]
[335634128,1724395841175,-500.0,0.00016969,2]
[335634129,1724395841185,-500.0,0.00016969,2]
[335634130,1724395841194,-734.75,0.00016969,2]
[335634131,1724395841203,-171.7108767,0.00016969,2]
[335634132,1724395841212,-525.95013454,0.00016969,2]
[335634133,1724395841222,-567.01,0.00016969,2]
[335634134,1724395841232,-500.0,0.00016969,2]
[335634135,1724395841241,-500.0,0.00016969,2]